bitfinex-derivatives/quotes_ETHF0:USTF0_20250205
["timestamp","ask_amount","ask_price","bid_price","bid_amount"]
[1738795686253,3.2078,2762.7,2762.3,3.10714195]
[1738795686751,3.2078,2762.7,2762.4,4.77954322]
[1738795687055,9.5403,2762.8,2762.4,7.98734322]
[1738795687262,8.6453,2763.4,2762.6,3.10714195]
[1738795687557,8.6453,2763.4,2762.7,3.2078]
[1738795687762,3.2078,2763.4,2762.7,7.93872931]
[1738795688062,3.2078,2763.4,2762.7,13.41532931]
[1738795688263,9.5403,2763.5,2763.0,3.2078]
[1738795688455,9.5403,2763.5,2762.9,3.10714195]
[1738795688655,9.5403,2763.5,2763.0,3.2078]
[1738795688857,9.5403,2763.5,2763.1,4.75913076]
[1738795689153,9.5403,2763.5,2763.0,3.2078]
[1738795689353,9.5403,2763.5,2763.2,7.74500478]
[1738795689562,9.5403,2763.5,2763.2,3.10714195]
[1738795690160,9.5403,2763.5,2763.3,4.61717774]
[1738795691062,9.5403,2763.5,2763.2,3.10714195]
[1738795691261,9.5403,2763.5,2763.0,3.2078]
[1738795691659,9.5403,2763.5,2762.9,3.10714195]
[1738795691969,1.0,2763.4,2762.9,3.10714195]
[1738795692265,1.0,2763.4,2763.0,4.75536021]
[1738795692566,4.2078,2763.4,2763.0,4.75536021]
[1738795694465,4.2078,2763.4,2762.7,3.2078]
[1738795694963,4.78678,2763.4,2762.7,3.2078]
[1738795695562,4.78677,2763.4,2762.7,3.2078]
[1738795695959,4.2078,2763.4,2762.7,3.2078]
[1738795696763,4.2078,2763.4,2762.6,3.10714195]
[1738795696957,3.2078,2763.1,2762.6,3.10714195]
[1738795697361,3.2078,2763.1,2762.4,3.2078]
[1738795699366,3.2078,2763.1,2762.5,4.79349604]
[1738795699866,3.2078,2763.1,2762.4,3.2078]
[1738795700468,3.2078,2763.1,2762.1,3.2078]
[1738795700668,3.2078,2762.8,2762.1,3.2078]
[1738795700870,9.6781,2762.7,2762.1,7.92788164]
[1738795701774,9.6781,2762.7,2762.1,3.2078]
[1738795703866,9.6781,2762.7,2762.2,4.67690306]
[1738795704371,9.6781,2762.7,2762.1,3.2078]
[1738795704972,0.57916,2762.5,2762.1,3.2078]
[1738795705173,3.2078,2762.5,2761.9,0.00543922]
[1738795705373,0.57919,2762.3,2761.9,0.00543922]
[1738795705676,3.2078,2762.5,2761.9,0.00543922]
[1738795705872,3.2078,2762.2,2761.9,0.00543922]
[1738795706368,5.4267,2762.1,2761.9,0.00543922]
[1738795706575,5.0981,2762.0,2761.9,0.00543922]
[1738795706775,9.97846,2762.0,2761.4,16.732]
[1738795706977,3.2078,2761.8,2761.4,16.732]
[1738795711079,3.2078,2761.5,2761.4,16.732]
[1738795711679,3.2078,2761.5,2761.3,0.00542908]
[1738795713277,3.2078,2761.5,2761.4,4.60858561]
[1738795713480,3.2078,2761.5,2761.3,0.00542908]
[1738795714772,3.2078,2761.5,2761.4,4.69350388]
[1738795715180,3.2078,2761.8,2761.4,4.69350388]
[1738795715880,3.2078,2761.8,2761.4,12.30344583]
[1738795716384,0.00540543,2761.9,2761.5,5.3218]
[1738795716881,0.00540543,2761.9,2761.6,4.64573954]
[1738795722881,0.00540543,2761.9,2761.5,5.3218]
[1738795727584,0.00540543,2761.9,2761.4,7.60994195]
[1738795729187,0.00540543,2761.9,2761.5,4.66034248]
[1738795730085,0.00540543,2761.9,2761.8,3.10714195]
[1738795730485,0.00540543,2761.9,2761.8,7.71542287]
[1738795733189,0.00540543,2761.9,2761.8,10.92322287]
[1738795734596,8.2531,2763.0,2761.8,10.92322287]
[1738795734890,8.2531,2763.0,2762.1,3.10714195]
[1738795735290,8.2531,2763.0,2762.2,7.94047966]
[1738795735493,3.2078,2763.0,2762.2,7.94047966]
[1738795737494,3.2078,2763.0,2762.4,3.10714195]
[1738795737896,3.2078,2763.0,2762.5,4.74835533]
[1738795738301,9.3286,2763.1,2762.5,4.74835533]
[1738795738503,3.2078,2762.6,2761.9,3.2078]
[1738795738706,4.2393,2762.5,2761.9,3.2078]
[1738795738901,4.2393,2762.5,2762.0,4.63632657]
[1738795739105,5.4198,2762.4,2762.0,4.63632657]
[1738795740010,5.4198,2762.4,2761.9,4.65391551]
[1738795740212,5.4198,2762.4,2762.1,4.65391551]
[1738795740403,5.4198,2762.4,2761.8,3.10714195]
[1738795740609,5.4198,2762.4,2761.9,4.62272981]
[1738795742508,5.4198,2762.4,2761.9,7.83052981]
[1738795743315,3.2078,2762.7,2761.9,7.83052981]
[1738795743815,3.2078,2762.7,2761.9,3.2078]
[1738795744007,12.8333,2763.2,2761.9,3.2078]
[1738795744507,12.8333,2763.2,2762.2,3.10714195]
[1738795744710,12.8333,2763.2,2762.2,6.31494195]
[1738795744909,12.8333,2763.2,2762.6,3.2078]
[1738795745302,12.8333,2763.2,2762.7,4.67258022]
[1738795745513,3.2078,2763.2,2762.7,4.67258022]
[1738795746113,9.6412,2763.1,2762.6,6.31494195]
[1738795746508,9.6412,2763.1,2762.7,4.59959095]
[1738795747513,9.6412,2763.1,2762.6,6.31494195]
[1738795748315,9.6412,2763.1,2762.7,4.61687716]
[1738795748714,5.3504,2763.1,2762.7,4.61687716]
[1738795748915,8.3805,2763.5,2762.7,4.61687716]
[1738795749417,8.3805,2763.5,2762.8,0.00542908]
[1738795749916,8.3805,2763.5,2762.9,4.72295111]
[1738795751118,8.3805,2763.5,2762.9,7.93075111]
[1738795751818,3.2078,2763.5,2762.9,7.93075111]
[1738795753509,18.2569,2763.8,2762.9,7.93075111]
[1738795753819,3.2078,2763.5,2762.9,7.93075111]
[1738795754017,18.83578,2763.8,2762.9,7.93075111]
[1738795754220,3.2078,2763.5,2762.9,7.93075111]
[1738795754518,18.2569,2763.8,2762.9,4.72295111]
[1738795754716,4.2078,2763.4,2762.9,4.72295111]
[1738795755117,1.0,2763.4,2762.9,4.72295111]
[1738795755310,1.0,2763.4,2763.2,3.10714195]
[1738795755711,1.0,2763.4,2763.3,7.91080415]
[1738795757921,15.32756535,2763.9,2763.3,18.00940415]
[1738795758123,14.58227926,2763.9,2763.8,3.10714195]
[1738795758417,5.4104,2764.6,2763.5,3.10714195]
[1738795758625,5.1833,2764.2,2763.5,3.10714195]
[1738795758919,4.3105,2764.1,2763.6,4.64988386]
[1738795759220,4.3105,2764.1,2763.1,4.7428]
[1738795759221,4.3105,2764.1,2763.2,3.10714195]
[1738795759522,4.3105,2764.1,2763.2,7.84151111]
[1738795760319,4.88933,2764.1,2763.2,3.10714195]
[1738795760623,0.57884,2764.0,2762.9,3.10714195]
[1738795760924,5.1841,2763.9,2762.9,3.10714195]
[1738795761920,0.57888,2763.8,2762.9,3.10714195]
[1738795763017,5.1841,2763.9,2762.9,3.10714195]
[1738795763218,3.2078,2763.4,2762.8,3.21322908]
[1738795763419,3.2078,2763.7,2763.0,4.64151258]
[1738795763623,3.2078,2763.7,2763.1,8.2494]
[1738795763919,3.2078,2763.7,2763.2,3.10714195]
[1738795765117,5.1841,2763.9,2763.3,4.70480559]
[1738795765523,5.1841,2763.9,2763.4,3.2078]
[1738795765915,5.1841,2763.9,2763.5,4.74907798]
[1738795766111,7.5183,2764.1,2763.5,7.85621993]
[1738795766919,3.2078,2764.1,2763.8,3.10714195]
[1738795767119,3.2078,2764.4,2763.8,3.10714195]
[1738795767326,5.0457,2764.5,2763.9,14.44848585]
[1738795767719,5.0457,2764.5,2764.0,3.2078]
[1738795768212,5.0457,2764.5,2764.1,7.88282307]
[1738795769120,5.0457,2764.5,2764.0,3.2078]
[1738795772718,5.0457,2764.5,2764.1,4.62416531]
[1738795773019,0.57878,2764.3,2763.7,3.2078]
[1738795773222,3.78661,2764.2,2763.2,3.10714195]
[1738795773422,5.07342,2764.1,2763.2,3.10714195]
[1738795773726,4.4946,2764.1,2763.2,3.10714195]
[1738795774121,0.57885,2764.0,2763.2,3.10714195]
[1738795774323,0.57886,2764.0,2763.2,3.10714195]
[1738795775229,3.2078,2763.8,2763.2,3.10714195]
[1738795775426,5.4182,2763.7,2763.2,3.10714195]
[1738795776324,3.2078,2763.8,2763.2,3.10714195]
[1738795776532,3.2078,2763.8,2763.3,4.80832477]
[1738795777126,3.2078,2763.8,2763.2,3.10714195]
[1738795780130,0.57894,2763.5,2763.0,3.2078]
[1738795780330,4.5074,2763.4,2763.0,3.2078]
[1738795781830,4.5074,2763.4,2762.9,12.36334195]
[1738795781831,0.57899,2763.3,2762.9,12.36334195]
[1738795782024,5.08638,2763.4,2762.9,8.10774195]
[1738795783528,5.08638,2763.4,2762.9,3.10714195]
[1738795783735,10.07658,2763.4,2762.8,0.00542908]
[1738795784121,4.5074,2763.4,2762.8,0.00542908]
[1738795784329,4.5074,2763.4,2762.9,3.10714195]
[1738795784626,4.5074,2763.4,2763.0,9.273]
[1738795786831,5.2723,2763.7,2763.1,4.73746036]
[1738795789129,5.2723,2763.7,2763.0,9.273]
[1738795789537,5.2723,2763.7,2763.1,4.7207469]
[1738795802736,7.5667,2763.8,2763.2,3.10714195]
[1738795803131,7.5667,2763.8,2763.3,4.79354933]
[1738795804039,7.5667,2763.8,2763.2,3.10714195]
[1738795804238,7.5667,2763.8,2763.0,9.273]
[1738795804542,8.14559,2763.8,2763.0,9.273]
[1738795804941,7.5667,2763.8,2762.9,3.2078]
[1738795805239,0.57893,2763.6,2762.9,3.2078]
[1738795805444,4.6897,2763.5,2762.9,3.2078]
[1738795805743,5.26864,2763.5,2762.9,3.2078]
[1738795806344,4.6897,2763.5,2762.9,3.2078]
[1738795807646,4.6897,2763.5,2763.0,4.70220459]
[1738795808035,4.6897,2763.5,2762.9,3.2078]
[1738795808243,5.26864,2763.5,2762.9,3.2078]
[1738795808542,4.6897,2763.5,2762.9,3.2078]
[1738795809337,4.6897,2763.5,2762.8,0.00542908]
[1738795809741,4.6897,2763.5,2762.9,4.78603954]
[1738795810140,4.6897,2763.5,2762.8,0.00542908]
[1738795810446,4.6897,2763.5,2762.9,4.75347697]
[1738795811137,4.3589,2763.8,2762.9,7.86061892]
[1738795811339,4.3589,2763.8,2762.9,11.06841892]
[1738795812948,4.3589,2763.8,2762.9,11.64748892]
[1738795813145,4.3589,2763.8,2762.9,11.06841892]
[1738795814043,4.3589,2763.8,2763.2,6.31494195]
[1738795814247,4.3589,2763.8,2763.3,8.8722]
[1738795814551,4.3589,2763.8,2763.3,4.71792941]
[1738795814849,4.3589,2763.8,2762.9,3.10714195]
[1738795815045,4.3589,2763.8,2762.9,6.31494195]
[1738795815243,4.3589,2763.8,2763.0,4.76607556]
[1738795815648,4.3589,2763.8,2763.1,4.5538]
[1738795815949,4.3589,2763.8,2763.2,4.76780332]
[1738795816151,4.3589,2763.8,2763.3,4.4456]
[1738795816647,7.9532,2764.0,2763.4,4.59900294]
[1738795817051,7.9532,2764.0,2763.5,3.2078]
[1738795817448,3.2078,2764.0,2763.6,4.59900294]
[1738795817848,3.2078,2764.0,2763.7,4.3756]
[1738795818349,3.2078,2764.0,2763.8,4.76358681]
[1738795819461,12.062,2764.4,2763.8,4.76358681]
[1738795819760,12.062,2764.4,2763.9,4.5315]
[1738795820161,8.8542,2764.4,2764.0,4.73465538]
[1738795821754,1.0,2764.5,2764.2,3.10714195]
[1738795821954,1.0,2764.5,2764.3,4.2342]
[1738795822155,1.0,2764.5,2764.3,8.82926141]
[1738795829966,1.0,2764.5,2764.3,13.52106141]
[1738795832464,1.0,2764.5,2764.3,8.926]
[1738795835070,1.0,2764.5,2764.4,4.66562796]
[1738795836179,1.0,2764.5,2764.3,8.926]
[1738795836976,1.0,2764.5,2764.4,4.73046684]
[1738795837377,1.00265578,2764.5,2764.4,4.73046684]
[1738795839970,1.00265578,2764.5,2764.2,6.31494195]
[1738795840579,4.6042,2764.4,2764.2,6.31494195]
[1738795841781,4.6042,2764.4,2764.3,4.61421147]
[1738795843179,4.6042,2764.4,2764.2,3.2078]
[1738795843385,4.447,2764.3,2764.2,3.2078]
[1738795843580,4.447,2764.3,2763.9,6.31494195]
[1738795848391,4.447,2764.3,2763.9,3.2078]
[1738795849289,4.447,2764.3,2764.0,4.65566349]
[1738795849489,4.447,2764.3,2764.0,13.46846349]
[1738795850192,4.447,2764.3,2764.0,8.8128]
[1738795850888,4.447,2764.3,2764.1,4.77267952]
[1738795851096,4.6042,2764.4,2764.1,4.77267952]
[1738795852697,4.6042,2764.4,2764.2,3.2078]
[1738795853192,1.00265578,2764.5,2764.2,3.2078]
[1738795853897,1.00265578,2764.5,2764.3,4.77581298]
[1738795854394,1.00265578,2764.5,2764.2,3.2078]
[1738795855498,1.00265578,2764.5,2764.2,6.31494195]
[1738795856889,1.00265578,2764.5,2764.3,4.6920689]
[1738795865904,1.00265578,2764.5,2764.2,6.31494195]
[1738795866898,8.8246,2764.4,2764.2,6.31494195]
[1738795867404,13.4157,2764.4,2764.2,3.2078]
[1738795872006,8.8246,2764.4,2764.2,3.2078]
[1738795872301,1.00265578,2764.5,2764.3,4.80578617]
[1738795872607,1.00265578,2764.5,2764.3,18.12408617]
[1738795873194,1.00265578,2764.5,2764.2,6.31494195]
[1738795873398,1.00265578,2764.5,2764.2,15.19764195]
[1738795873805,1.00265578,2764.5,2764.3,4.76744695]
[1738795879810,1.00265578,2764.5,2764.4,4.5946]
[1738795880214,1.00265578,2764.5,2764.4,9.19887626]
[1738795881710,1.00265578,2764.5,2764.2,6.31494195]
[1738795882013,1.00265578,2764.5,2764.3,4.79556459]
[1738795885215,14.58227926,2765.5,2764.3,12.90270654]
[1738795885409,14.58227926,2765.5,2765.0,3.10714195]
[1738795885610,14.58227926,2765.5,2765.1,4.3484]
[1738795885810,14.58227926,2765.3,2765.1,9.03441467]
[1738795886214,14.58227926,2765.3,2765.1,12.24221467]
[1738795887008,14.58227926,2765.3,2765.1,3.2078]
[1738795887206,14.58227926,2765.3,2764.7,10.66334195]
[1738795887411,14.58227926,2765.3,2765.2,4.76872513]
[1738795887607,14.58227926,2765.3,2765.0,3.10714195]
[1738795887811,14.58227926,2765.3,2765.1,4.7551242]
[1738795888015,8.7466,2765.6,2765.2,4.7551242]
[1738795888217,8.7466,2765.6,2765.0,3.10714195]
[1738795888417,8.7466,2765.6,2765.3,4.7551242]
[1738795888816,8.7466,2765.6,2765.1,4.4725]
[1738795889116,8.7466,2765.6,2765.4,4.63996103]
[1738795889312,8.7466,2765.6,2765.2,4.63996103]
[1738795889514,8.7466,2765.6,2765.1,4.4725]
[1738795891216,8.7466,2765.6,2765.0,0.29315002]
[1738795891420,8.7466,2765.6,2764.7,6.31494195]
[1738795891816,8.7466,2765.6,2764.8,4.6961599]
[1738795894721,8.7466,2765.6,2764.7,6.59907063]
[1738795896117,8.7466,2765.6,2764.8,4.8085821]
[1738795899420,9.32511,2765.6,2764.8,4.8085821]
[1738795899625,8.7466,2765.6,2764.8,4.8085821]
[1738795900020,9.3251,2765.6,2764.8,4.8085821]
[1738795900226,8.7466,2765.6,2764.8,4.8085821]
[1738795900422,3.2078,2765.5,2764.8,4.8085821]
[1738795903118,0.57855,2765.4,2764.8,4.8085821]
[1738795903323,4.81967,2765.3,2764.7,3.2078]
[1738795904217,3.2078,2765.2,2764.7,3.2078]
[1738795904623,4.4989,2765.1,2764.7,3.2078]
[1738795904918,4.1934,2765.0,2764.7,3.2078]
[1738795907817,3.2078,2764.9,2764.6,0.00542908]
[1738795911718,3.2078,2764.9,2764.7,4.64371596]
[1738795912526,3.2078,2764.9,2764.8,4.3315]
[1738795912728,3.2078,2764.9,2764.8,8.8567]
[1738795912927,3.2078,2764.9,2764.8,13.61175049]
[1738795913426,3.2078,2765.3,2764.8,13.61175049]
[1738795913633,3.2078,2765.3,2765.0,3.10714195]
[1738795914131,3.2078,2765.3,2765.1,4.7292728]
[1738795918130,3.2078,2765.3,2765.1,9.3023728]
[1738795918830,3.2078,2765.3,2765.1,4.5731]
[1738795920234,3.2078,2765.6,2765.2,4.7515288]
[1738795920534,3.2078,2765.6,2765.5,3.10714195]
[1738795921136,3.2078,2765.6,2765.3,4.2341]
[1738795921333,4.17,2765.5,2765.3,4.2341]
[1738795921536,4.17,2765.5,2765.4,4.69067939]
[1738795926133,4.17,2765.5,2765.3,4.52641032]
[1738795926326,8.726,2765.5,2765.3,4.52641032]
[1738795928634,8.726,2765.5,2765.2,3.10714195]
[1738795928831,8.726,2765.5,2764.9,7.64754195]
[1738795929139,4.2017,2765.4,2764.9,7.64754195]
[1738795930138,3.2078,2765.3,2764.9,7.64754195]
[1738795930830,3.2078,2765.3,2764.9,3.10714195]
[1738795932139,3.2078,2765.3,2764.9,7.27284195]
[1738795934835,3.2078,2765.3,2765.0,4.71910803]
[1738795935346,3.2078,2765.3,2764.9,7.27284195]
[1738795935545,3.2078,2765.3,2765.1,4.62135237]
[1738795935844,3.2078,2765.3,2765.0,4.62135237]
[1738795936045,3.2078,2765.3,2764.9,7.27284195]
[1738795936346,3.2078,2765.3,2765.2,4.62565743]
[1738795936538,3.2078,2765.3,2765.2,3.10714195]
[1738795936734,3.2078,2765.3,2765.2,7.73279938]
[1738795937144,3.2078,2765.3,2765.2,3.10714195]
[1738795937439,4.5591,2765.8,2765.2,3.10714195]
[1738795937440,3.2078,2765.6,2765.2,7.7307942]
[1738795937647,14.58227926,2765.9,2765.5,6.31494195]
[1738795937840,14.58227926,2765.9,2765.6,4.3276]
[1738795938042,14.58227926,2765.9,2765.6,9.10494389]
[1738795940847,3.2078,2766.2,2765.6,9.10494389]
[1738795941051,3.2078,2766.2,2765.8,3.10714195]
[1738795941247,3.2078,2766.2,2765.9,4.3484]
[1738795941550,3.2078,2766.2,2765.9,9.08676844]
[1738795945346,12.1906,2766.3,2765.9,9.08676844]
[1738795948649,12.1906,2766.3,2765.9,9.37108744]
[1738795951956,12.1906,2766.3,2765.9,13.94198744]
[1738795955162,3.2078,2766.3,2765.9,13.94198744]
[1738795956155,4.2078,2766.3,2765.9,13.94198744]
[1738795956753,4.2078,2766.3,2766.2,1.37992722]
[1738795963759,9.2078,2766.3,2765.8,1.37992722]
[1738795963958,9.2078,2766.3,2765.6,3.2078]
[1738795963959,1.37992722,2766.2,2765.6,4.58772722]
[1738795964161,4.3268,2766.1,2765.6,4.58772722]
[1738795964351,4.2444,2766.0,2765.6,4.58772722]
[1738795964556,8.7992,2766.0,2765.6,4.58772722]
[1738795966362,8.7992,2766.0,2765.8,1.37992722]
[1738795966754,8.7992,2766.0,2765.6,3.49523513]
[1738795971568,8.7992,2766.0,2765.7,4.70398619]
[1738795971766,8.7992,2766.0,2765.6,3.2078]
[1738795971970,12.007,2766.0,2765.6,3.2078]
[1738795972163,0.57844,2765.9,2765.3,3.2078]
[1738795972367,12.58542,2766.0,2765.2,5.59420516]
[1738795972566,3.2078,2765.7,2765.2,5.59420516]
[1738795972763,3.2078,2765.7,2765.1,16.703]
[1738795972764,2.7349,2765.6,2765.1,16.703]
[1738795972968,2.6501,2765.5,2765.1,16.99016386]
[1738795973168,5.2743,2765.5,2765.1,16.99016386]
[1738795973971,5.2743,2765.5,2765.0,3.2078]
[1738795974176,5.2743,2765.5,2764.6,0.00542908]
[1738795974177,0.57862,2765.1,2764.6,0.00542908]
[1738795974372,3.2078,2764.8,2764.6,0.00542908]
[1738795974573,2.5888,2764.7,2764.6,0.00542908]
[1738795976570,3.2078,2764.8,2764.6,0.00542908]
[1738795976977,5.4741,2765.0,2764.7,4.69465977]
[1738795977177,2.7397,2765.0,2764.7,5.5228]
[1738795977783,2.7397,2765.0,2764.8,4.81060007]
[1738795978380,2.7397,2765.0,2764.7,5.5228]
[1738795980478,2.7397,2765.0,2764.8,4.80333612]
[1738795980673,3.2078,2765.2,2764.8,4.80333612]
[1738795980873,3.2078,2765.2,2764.8,7.88774128]
[1738795981481,3.2078,2765.2,2764.8,3.08440516]
[1738795982379,3.2078,2765.2,2764.9,4.67197078]
[1738795983885,3.2078,2765.5,2764.9,4.67197078]
[1738795984082,3.2078,2765.5,2765.0,2.6096]
[1738795984480,3.2078,2765.5,2765.1,4.62580647]
[1738795984785,3.2078,2765.5,2765.2,2.6306]
[1738795984975,3.2078,2765.5,2765.2,5.363]
[1738795985178,8.5952,2765.9,2765.2,5.363]
[1738795985377,8.5952,2765.9,2765.3,7.98837221]
[1738795988385,8.5952,2765.9,2765.4,3.08440516]
[1738795988785,8.5952,2765.9,2765.5,4.68243487]
[1738795989280,8.5952,2765.9,2765.4,3.08440516]
[1738795990290,3.2078,2765.9,2765.4,3.08440516]
[1738795990485,3.2078,2765.9,2765.5,2.6034]
[1738795990694,11.3674,2766.2,2765.6,3.2078]
[1738795990982,11.3674,2766.2,2765.7,2.6211]
[1738795991180,11.3674,2766.2,2765.7,5.3991]
[1738795993088,11.3674,2766.2,2765.8,4.80734723]
[1738795993484,11.3674,2766.2,2765.7,8.6069]
[1738795995683,8.1596,2766.2,2765.7,8.6069]
[1738795996078,1.0,2766.3,2765.7,11.69130516]
[1738795996390,1.0,2766.3,2766.1,3.2078]
[1738795996585,1.0,2766.3,2766.2,7.9614]
[1738795996782,1.0,2766.3,2766.2,12.72051982]
[1738795999191,1.0,2766.3,2766.2,17.72051982]
[1738796000694,8.1342,2767.2,2766.2,17.72051982]
[1738796000894,8.1342,2767.2,2766.7,3.08440516]
[1738796001095,8.1342,2767.2,2766.7,6.29220516]
[1738796001397,8.1342,2767.2,2766.8,9.33818403]
[1738796005402,2.7422,2767.2,2767.0,3.2078]
[1738796005698,2.7422,2767.2,2767.1,4.66974357]
[1738796006000,4.6934,2767.6,2767.1,4.66974357]
[1738796006201,2.2737,2767.5,2767.1,4.66974357]
[1738796008396,2.3235,2767.6,2767.3,3.08440516]
[1738796008699,2.3235,2767.6,2767.4,7.13077976]
[1738796009094,3.2078,2767.7,2767.4,9.40497976]
[1738796011805,2.1488,2767.6,2767.4,7.13077976]
[1738796013007,3.2078,2767.7,2767.4,7.13077976]
[1738796015510,4.6669,2767.9,2767.4,7.13077976]
[1738796015710,4.6669,2767.9,2767.4,9.52717976]
[1738796016403,4.6669,2767.9,2767.6,3.08440516]
[1738796016804,4.6669,2767.9,2767.7,4.78413909]
[1738796019106,3.2078,2768.1,2767.7,4.78413909]
[1738796019521,4.6768,2768.0,2767.7,4.78413909]
[1738796019710,7.0236,2768.0,2767.7,4.78413909]
[1738796019915,1.0,2767.7,2767.4,2.3561]
[1738796020412,1.0,2767.7,2767.3,6.29220516]
[1738796020913,1.0,2767.7,2767.1,2.2004]
[1738796021309,1.0,2767.7,2767.0,6.29220516]
[1738796023408,1.0,2767.7,2767.0,3.2078]
[1738796023409,0.57809,2767.6,2767.0,3.2078]
[1738796023609,4.5664,2767.5,2767.0,3.2078]
[1738796023809,6.7479,2767.5,2767.0,3.2078]
[1738796024605,7.326,2767.5,2767.0,3.2078]
[1738796024811,6.7479,2767.5,2767.0,3.2078]
[1738796025714,9.9557,2767.5,2767.0,3.2078]
[1738796030612,1.0,2767.7,2767.3,3.08440516]
[1738796030815,1.0,2767.7,2767.4,2.3336]
[1738796031013,1.0,2767.7,2767.4,6.92583993]
[1738796031519,1.0,2767.7,2767.6,3.08440516]
[1738796031912,1.0,2767.7,2767.6,7.84058171]
[1738796032610,1.0,2767.7,2767.4,2.3336]
[1738796033007,1.0,2767.7,2767.5,4.67351591]
[1738796034115,1.0,2767.7,2767.4,2.3336]
[1738796034314,3.2254,2767.7,2767.4,2.3336]
[1738796034526,3.2254,2767.7,2767.3,3.08440516]
[1738796034724,3.2254,2767.7,2767.1,2.4008]
[1738796037221,3.2254,2767.7,2767.0,6.29220516]
[1738796038819,3.2254,2767.7,2767.1,4.76057656]
[1738796039218,1.0,2767.7,2767.5,3.2078]
[1738796039415,1.0,2767.7,2767.3,3.08440516]
[1738796039825,1.0,2767.7,2767.4,4.60704374]
[1738796041525,2.0398,2767.6,2767.4,4.60704374]
[1738796041726,1.0,2767.7,2767.3,3.08440516]
[1738796050632,1.0,2767.7,2767.2,4.2573]
[1738796051032,3.2078,2767.5,2766.8,3.2078]
[1738796051234,2.1149,2767.4,2766.8,3.2078]
[1738796051434,2.1581,2767.3,2766.8,3.2078]
[1738796057739,2.73626,2767.3,2766.8,3.2078]
[1738796057940,2.1581,2767.3,2766.8,3.2078]
[1738796058142,2.73625,2767.3,2766.8,3.2078]
[1738796058841,2.1581,2767.3,2766.8,3.2078]
[1738796060035,3.2078,2767.2,2766.8,3.2078]
[1738796060435,3.2078,2767.2,2766.6,6.3671]
[1738796061544,3.2078,2767.2,2766.6,4.2648]
[1738796062145,3.78597,2767.2,2766.6,4.2648]
[1738796063547,0.57825,2766.9,2766.6,2.1868]
[1738796063844,6.3477,2766.8,2766.5,3.2078]
[1738796064035,6.92597,2766.8,2766.4,0.00542908]
[1738796064241,0.57829,2766.7,2766.4,0.00542908]
[1738796064839,6.3477,2766.8,2766.4,0.00542908]
[1738796065037,6.92596,2766.8,2766.4,0.00542908]
[1738796066343,6.3477,2766.8,2766.4,0.00542908]
[1738796067645,6.92596,2766.8,2766.4,0.00542908]
[1738796067845,6.3477,2766.8,2766.4,0.00542908]
[1738796070251,6.92596,2766.8,2766.4,0.00542908]
[1738796071249,3.2078,2766.6,2766.4,0.00542908]
[1738796071846,3.2078,2766.6,2765.8,3.2078]
[1738796072056,3.2078,2766.3,2765.5,2.0128]
[1738796072245,3.2078,2766.0,2765.3,5.14700516]
[1738796072442,0.57845,2765.9,2765.3,5.14700516]
[1738796072847,0.57845,2765.9,2765.3,2.0626]
[1738796073047,0.58387908,2765.9,2765.3,2.06802908]
[1738796073249,0.58388908,2765.9,2765.3,2.06802908]
[1738796073442,0.00542908,2765.9,2765.3,2.06802908]
[1738796073650,0.58387908,2765.9,2765.3,2.06802908]
[1738796073845,0.57847,2765.8,2765.3,2.06802908]
[1738796074044,0.58387908,2765.9,2765.3,2.06802908]
[1738796074246,2.0624,2765.7,2765.3,2.06802908]
[1738796075045,2.1079,2765.6,2765.3,2.06802908]
[1738796075846,2.1079,2765.6,2765.3,0.00542908]
[1738796077249,2.68642,2765.6,2765.3,0.00542908]
[1738796077452,2.1079,2765.6,2765.3,0.00542908]
[1738796077954,2.1079,2765.6,2764.4,8.39020516]
[1738796077955,3.2078,2765.4,2764.4,8.39020516]
[1738796078156,3.2078,2765.0,2764.5,2.2112]
[1738796078454,3.78644,2765.0,2764.5,2.2112]
[1738796078654,3.2078,2765.0,2764.5,2.2112]
[1738796079258,3.2078,2765.0,2764.5,2.21662908]
[1738796079456,3.2078,2765.0,2764.6,4.72604472]
[1738796079954,3.2078,2765.3,2764.6,4.72604472]
[1738796080357,0.57859,2765.2,2764.5,2.21662908]
[1738796080559,0.57863,2765.0,2764.5,0.00542908]
[1738796080855,3.2078,2765.0,2764.5,0.00542908]
[1738796081250,0.57868,2764.8,2764.5,0.00542908]
[1738796081453,2.0995,2764.9,2764.5,0.00542908]
[1738796081656,3.2078,2764.7,2764.5,0.00542908]
[1738796082062,5.2842,2764.7,2764.5,0.00542908]
[1738796082255,0.57871,2764.6,2764.5,0.00542908]
[1738796083551,2.67921,2764.6,2764.5,0.00542908]
[1738796083755,5.2842,2764.7,2764.5,0.00542908]
[1738796083954,2.0995,2764.9,2764.5,0.00542908]
[1738796084660,0.57871,2764.6,2764.5,0.00542908]
[1738796085160,2.63801,2764.6,2764.5,0.00542908]
[1738796085453,7.63801,2764.6,2764.5,0.00542908]
[1738796085661,0.57877,2764.4,2764.0,2.1058]
[1738796085857,3.2078,2764.2,2764.0,2.1058]
[1738796086964,3.2078,2764.2,2763.8,0.00542908]
[1738796086965,0.57886,2763.9,2763.8,0.00542908]
[1738796087159,3.2078,2763.9,2762.9,3.08440516]
[1738796087356,3.78676,2763.5,2762.8,18.74]
[1738796087660,2.0997,2763.4,2762.8,18.74]
[1738796087957,3.2078,2763.5,2762.9,4.68999368]
[1738796088460,3.2078,2763.5,2762.9,4.69542276]
[1738796088660,3.2078,2763.5,2762.9,0.00542908]
[1738796089360,3.2078,2763.5,2763.0,4.60288131]
[1738796089563,2.0282,2763.4,2763.0,4.60288131]
[1738796089861,2.0282,2763.4,2762.9,0.00542908]
[1738796089862,2.60717,2763.4,2762.9,0.00542908]
[1738796090058,0.57899,2763.3,2762.9,0.00542908]
[1738796090256,2.1876,2763.2,2762.9,0.00542908]
[1738796090650,5.3954,2763.2,2762.9,0.00542908]
[1738796091663,3.2078,2763.2,2762.9,0.00542908]
[1738796091960,2.0282,2763.4,2762.9,0.00542908]
[1738796093061,2.60718,2763.4,2762.9,0.00542908]
[1738796093262,0.57899,2763.3,2762.9,0.00542908]